Cogmind - Beta 11 X8 @@@ ROGUE MODE // 2022.01.02 @ 21:22:31 Player: Nalzok Result: Destroyed by L-61 Swordsman with Power Sword Performance ------------- Evolutions (8) 4000 Regions Visited (23) 4600 Robots Destroyed (325) 1625 Value Destroyed (19816) 19816 Prototype IDs (49) 980 Alien Tech Used (0) 0 Bonus (10054) 10054 TOTAL SCORE: 41075 Bonus ------- High Alert Combat Kills 2911 Follower Combat Kills 2339 Entered Garrisons 1400 Used RIF Installer 3500 Aligned with FarCom 300 Friendly Fire -396 Cogmind --------- Core Integrity 0/1450 Matter 285/300 Energy 11/100 System Corruption 21% Temperature Cool (0) Movement Flying (30) Location -2/Research Parts ------- > --- POWER (3) -------- (None) > --- PROPULSION (4) --- Cooled Q-thruster > --- UTILITY (12) ----- Advanced Target Analyzer Experimental Focal Shield > --- WEAPON (4) ------- (None) > --- INVENTORY (5) ---- Advanced Heat Sink Experimental Shield Generator Relay Coupler [NC] (27) Relay Coupler [Specialist] Improved Matter Neutralizer Peak State ------------ > --- POWER ------------ Light Particle Reactor Light Particle Reactor Reinforced Quantum Reactor > --- PROPULSION ------- Heavy Siege Treads Armored Heavy Treads > --- UTILITY ---------- Advanced Heat Sink Advanced Heat Sink Huge Storage Unit Active Sensor Suite Advanced Target Analyzer Improved Core Analyzer Quantum Capacitor Advanced Force Field Relay Coupler [Hunter] > --- WEAPON ----------- Gamma Rifle Enhanced Quantum Rifle Enhanced Quantum Rifle Advanced Remote Datajack > --- INVENTORY -------- Light Particle Reactor Improved Heavy Siege Treads Biometal Heavy Treads Advanced Heat Sink Advanced Heat Sink Advanced Coolant Injector Quantum Capacitor Advanced Transmission Jammer Advanced Cloaking Device Improved Remote Force Field Relay Coupler [NC] Relay Coupler [Specialist] Heavy Laser Phase Gun Enhanced Quantum Rifle Enhanced Quantum Rifle AWS/Gauss Hardcell Cannon Light Antimatter Cannon Advanced Remote Datajack Power Sword [Rating: 185] Favorites ----------- Power Micro Fission Core Engine Reinforced Deuterium Engine Power Core Micro Fission Core Reactor Reinforced Antimatter Reactor Propulsion Carbon-fiber Leg Treads Heavy Siege Treads Leg Carbon-fiber Leg Wheel Wheel Flight Unit Cooled Q-thruster Utility Advanced Heat Sink Device Advanced Heat Sink Storage Huge Storage Unit Processor Improved Core Analyzer Hackware Relay Coupler [Hunter] Protection Hardened Heavy Armor Plating Weapon Advanced Plasma Cannon Energy Gun Heavy Laser Energy Cannon Advanced Plasma Cannon Ballistic Gun Railgun Ballistic Cannon Heavy Flak Cannon Launcher Rocket Launcher Special Weapon Remote Datajack Impact Weapon Powered Hammer Slashing Weapon Carbide Saw Piercing Weapon Lance Special Melee Weapon Datajack Build | -11 -10 -10 -9 -9 -9 -8 -8 -7 -7 -7 -7 -6 -6 -5 -5 -5 -5 -4 -4 -3 -2 -2 -2 ------- Run | Scr Mat Min Mat Min Exi Min Mat Fac Gar Fac Gar Fac Gar Fac Gar Fac Gar Fac Gar Res Res Gar Res Slots Evolved 16 | . . . 2 . . . 2 2 . . . 2 . 2 . . . 2 . 2 2 . . Power 2 | . . . . . . . . 1 . . . . . . . . . . . . 1 . . Propulsion 2 | . . . . . . . . 1 . . . . . 1 . . . . . . . . . Utility 10 | . . . 2 . . . 2 . . . . . . 1 . . . 2 . 2 1 . . Weapon 2 | . . . . . . . . . . . . 2 . . . . . . . . . . . Parts Attached 543 | . 6 7 31 . 1 7 33 8 14 13 13 11 51 41 21 38 33 60 39 10 26 49 31 Power 66 | . . 2 5 . . 1 3 1 2 1 . 2 2 4 3 7 4 4 4 3 6 8 4 Engine 13 | . . 2 4 . . 1 2 . 1 1 . . 1 . . . 1 . . . . . . Core 29 | . . . 1 . . . 1 1 1 . . 2 1 4 3 7 3 2 3 . . . . Reactor 24 | . . . . . . . . . . . . . . . . . . 2 1 3 6 8 4 Propulsion 85 | . 2 1 6 . . 2 7 3 3 5 4 3 13 6 . 3 3 10 3 . 2 3 6 Treads 26 | . . . . . . . . . . . . . . 2 . 3 3 6 3 . 2 3 4 Leg 52 | . 2 1 6 . . 2 6 3 3 5 4 3 13 4 . . . . . . . . . Wheel 4 | . . . . . . . . . . . . . . . . . . 4 . . . . . Hover . | . . . . . . . . . . . . . . . . . . . . . . . . Flight 3 | . . . . . . . 1 . . . . . . . . . . . . . . . 2 Utility 180 | . 1 2 6 . 1 1 12 1 5 3 2 2 17 14 10 8 13 19 14 3 8 22 16 Device 102 | . 1 . 2 . . . 3 . 4 1 . 1 4 7 4 3 10 11 9 3 8 18 13 Storage 8 | . . 2 1 . 1 . . . 1 1 . . . . . 1 . . . . . 1 . Processor 20 | . . . 2 . . 1 5 . . 1 2 1 . 2 2 . 1 2 . . . 1 . Hackware 33 | . . . . . . . . . . . . . 10 3 4 4 2 4 3 . . 1 2 Protection 17 | . . . 1 . . . 4 1 . . . . 3 2 . . . 2 2 . . 1 1 Artifact . | . . . . . . . . . . . . . . . . . . . . . . . . Weapon 212 | . 3 2 14 . . 3 11 3 4 4 7 4 19 17 8 20 13 27 18 4 10 16 5 Energy Gun 72 | . . . 7 . . 1 4 2 2 2 . 1 6 4 4 1 5 3 7 2 5 12 4 Energy Cannon 32 | . . . 1 . . . . . . . . . 1 4 1 12 4 8 . 1 . . . Ballistic Gun 37 | . 1 1 2 . . . 5 . . . 7 2 3 1 1 . . 3 5 . 3 2 1 Ballistic Cannon 10 | . . . . . . . . . 1 1 . . 3 1 . . . 4 . . . . . Launcher 16 | . 2 1 4 . . 1 2 1 1 . . . . 1 . . 1 1 1 . . . . Special Weapon 39 | . . . . . . 1 . . . . . 1 5 5 2 5 3 7 5 1 2 2 . Impact Weapon 1 | . . . . . . . . . . . . . 1 . . . . . . . . . . Slashing Weapon 1 | . . . . . . . . . . . . . . . . 1 . . . . . . . Piercing Weapon 3 | . . . . . . . . . . . . . . 1 . 1 . 1 . . . . . Special Melee Weapon 1 | . . . . . . . . . . 1 . . . . . . . . . . . . . Unidentified Prototypes 16 | . . . 2 . . . . 1 . . . 1 . 1 . 1 . 4 1 . 1 . 4 Corrupted Parts 1 | . . . . . . . . . . . . . . . . . . 1 . . . . . System Corruption 5 | . . . . . . . . . . . . . . . . . . 5 . . . . . Parts Lost 123 | . . 1 8 . . 5 8 . 7 11 3 . 9 4 4 3 3 20 2 . 2 11 22 Power 18 | . . 1 1 . . . 1 . 2 2 . . 2 . . 1 . 2 . . . 4 2 Propulsion 32 | . . . 3 . . 1 1 . 3 4 1 . 2 3 . 1 2 6 . . . 2 3 Utility 32 | . . . 1 . . 2 3 . 1 2 . . . . 2 1 1 6 . . 1 2 10 Weapon 41 | . . . 3 . . 2 3 . 1 3 2 . 5 1 2 . . 6 2 . 1 3 7 Highest Loss Streak 15 | . . 1 5 . . 3 4 . 3 7 2 . 4 2 3 1 1 11 1 . 1 6 15 Average Slot Usage (%) 90 | . 98 100 98 100 100 92 95 99 90 83 73 86 99 94 87 87 94 87 85 80 84 84 79 Engine 3 | . 14 14 9 11 11 11 7 7 10 8 . . 3 1 . . . . . . . . . Core 5 | . . . . . . . 1 7 3 . . 6 9 9 11 10 10 7 5 . . . . Reactor 2 | . . . . . . . . . . . . . . . . . . 2 5 7 13 12 12 Treads 6 | . . . . . . . . . . . . . . 4 11 12 19 16 10 9 8 7 7 Leg 10 | . 28 28 21 22 22 21 17 23 20 22 15 19 19 14 . . . . . . . . . Device 15 | . 13 14 19 11 11 5 7 7 12 13 15 13 7 12 18 18 21 21 11 10 23 27 26 Storage 6 | . 14 14 11 11 11 11 9 7 7 7 7 6 6 5 5 7 5 5 5 4 4 4 3 Processor 11 | . . . 10 11 11 12 19 23 23 22 23 20 13 11 10 7 9 8 5 4 4 6 7 Hackware 4 | . . . . . . . . . . . . . 9 8 3 3 . 3 14 17 13 5 3 Protection 2 | . . . 1 11 11 8 14 6 . . . . . . . . . 1 6 4 1 . . Energy Gun 7 | . 6 . 16 22 22 18 8 14 6 3 1 . 7 5 8 2 6 5 9 2 3 8 8 Energy Cannon 3 | . . . . . . . . . . . . . . 9 8 18 14 7 1 2 4 . . Ballistic Gun 4 | . 14 14 3 . . . 5 . . . 9 14 8 1 . . . 1 6 9 5 5 2 Ballistic Cannon 1 | . . . . . . . . . 3 4 . . 3 2 . . . 1 . . . . . Special Weapon 1 | . . . . . . 1 1 . . . . 3 4 2 3 . . . 1 3 3 . 3 Naked Turns . | . . . . . . . . . . . . . . . . . . . . . . . . Heaviest Build 203 | 13 16 31 31 29 29 29 41 50 50 109 92 109 124 136 134 156 144 152 153 165 200 203 194 Greatest Support 152 | 20 20 20 23 23 23 23 25 51 51 48 45 57 57 152 140 140 124 140 140 140 145 145 150 Greatest Overweight (x) 12 | . . 1 2 1 1 1 2 1 1 7 7 2 2 2 . 1 1 12 1 1 1 3 1 Average Overweight (x) . | . . . . 1 1 1 . . . 1 2 1 1 . . . . 1 . 1 1 1 . Largest Inventory Capacity 25 | 8 8 15 10 10 10 10 10 10 10 25 25 25 25 25 25 25 25 25 25 25 25 25 25 Average Capacity 21 | 8 8 11 10 10 10 10 10 10 10 20 25 25 25 25 25 25 25 25 25 25 25 25 24 Most Carried 25 | 5 8 10 10 10 10 10 10 10 10 13 11 23 25 25 25 25 25 25 25 25 25 25 25 Average Carried 20 | 5 7 8 9 10 9 9 9 9 9 10 9 19 24 24 24 24 24 23 24 24 24 24 23 Final Capacity 25 | 8 8 10 10 10 10 10 10 10 10 25 25 25 25 25 25 25 25 25 25 25 25 25 5 Final Carried 25 | 4 8 10 10 10 10 10 10 10 10 10 11 23 25 25 25 25 25 25 25 25 25 25 5 Class Distribution -------------------- 18% | Scavenger-Skirmisher 15% | Scavenger-Mutant 13% | Bothacker-Skirmisher 12% | Mutant 11% | Bothacker-Mutant 7% | Botlord-Mutant 7% | Scavenger-Gunner 5% | Botlord-Gunner 3% | Scavenger-Tank 3% | Bothacker-Gunner Dominant Class ---------------- Mutant | -10/Materials Mutant | -10/Mines Mutant | -9/Materials Mutant | -9/Mines Mutant | -9/Exiles Mutant | -8/Mines Scavenger-Skirmisher | -8/Materials Scavenger-Skirmisher | -7/Factory Scavenger-Skirmisher | -7/Garrison Scavenger-Skirmisher | -7/Factory Scavenger-Mutant | -7/Garrison Scavenger-Mutant | -6/Factory Bothacker-Skirmisher | -6/Garrison Bothacker-Skirmisher | -5/Factory Bothacker-Skirmisher | -5/Garrison Bothacker-Gunner | -5/Factory Scavenger-Gunner | -5/Garrison Bothacker-Mutant | -4/Factory Scavenger-Tank | -4/Garrison Botlord-Mutant | -3/Research Botlord-Gunner | -2/Research Scavenger-Mutant | -2/Garrison Scavenger-Mutant | -2/Research Resources | -11 -10 -10 -9 -9 -9 -8 -8 -7 -7 -7 -7 -6 -6 -5 -5 -5 -5 -4 -4 -3 -2 -2 -2 ----------- Run | Scr Mat Min Mat Min Exi Min Mat Fac Gar Fac Gar Fac Gar Fac Gar Fac Gar Fac Gar Res Res Gar Res Matter Collected 9218 | 193 117 52 514 . 10 91 572 66 304 349 199 43 1151 450 425 433 616 924 891 289 352 849 328 Remotely . | . . . . . . . . . . . . . . . . . . . . . . . . Salvage Created 16081 | . 231 53 1049 . . 480 1418 222 456 264 248 43 630 853 596 631 935 1909 1250 . 943 1647 2223 Parts 707 | . 12 12 75 . . 25 85 16 19 11 12 6 19 35 15 33 46 68 36 . 43 52 87 Haulers Intercepted 10 | . . . 4 . . . 3 2 . . . . . . . . . . . . . . 1 Recyclers Shooed 14 | . . 1 . . . . . . . . . . . 2 . . . 5 . . . . 6 Parts Field Recycled . | . . . . . . . . . . . . . . . . . . . . . . . . Retrieved Matter . | . . . . . . . . . . . . . . . . . . . . . . . . Parts Self-Destructed . | . . . . . . . . . . . . . . . . . . . . . . . . Prevented . | . . . . . . . . . . . . . . . . . . . . . . . . Kills | -11 -10 -10 -9 -9 -9 -8 -8 -7 -7 -7 -7 -6 -6 -5 -5 -5 -5 -4 -4 -3 -2 -2 -2 ------- Run | Scr Mat Min Mat Min Exi Min Mat Fac Gar Fac Gar Fac Gar Fac Gar Fac Gar Fac Gar Res Res Gar Res Combat Hostiles Destroyed 274 | . 9 5 26 . . 10 25 2 19 8 4 1 15 14 8 13 19 24 17 . 12 18 25 Guns 144 | . 6 1 13 . . 4 13 2 11 4 4 1 12 1 3 1 5 12 15 . 1 10 25 Cannons 65 | . . . . . . . . . 5 3 . . 3 7 3 12 9 6 2 . 9 6 . AOE 49 | . 3 4 12 . . 5 12 . 3 . . . . 2 . . 4 4 . . . . . Classes Destroyed 21 | . 3 1 5 . . 2 4 . . 1 . . 1 2 . . . . . . 1 . 1 Worker 10 | . . . 3 . . 1 3 . . . . . . . . 1 . 1 . . . . 1 Builder 5 | . 1 . . . . . 1 1 . . . . . . . 1 . 1 . . . . . Tunneler 4 | . . . 1 . . 1 2 . . . . . . . . . . . . . . . . Hauler 10 | . . . 4 . . . 3 2 . . . . . . . . . . . . . . 1 Recycler 11 | . . . . . . 1 2 1 . . . . . 2 . . . 3 . . . . 2 Mechanic 4 | . . . . . . . . . . . . . . 1 . . . 1 . . 1 . 1 Operator 1 | . . . . . . . 1 . . . . . . . . . . . . . . . . Watcher 4 | . 1 . 1 . . . 1 . . . . . . . . . . . . . . . 1 Swarmer 47 | . . 3 10 . . 4 3 . 3 3 . . 4 . . 4 7 1 . . . . 5 Cutter 6 | . . . . . . . . . . . . . . 4 . 2 . . . . . . . Grunt 116 | . 9 2 9 . . 5 14 2 15 1 . . 5 3 1 4 6 11 12 . 3 12 2 Brawler 4 | . . . . . . 1 . . . . . . 1 . . . . . 1 . . 1 . Duelist 1 | . . . 1 . . . . . . . . . . . . . . . . . . . . Sentry 28 | . . . 6 . . . 4 . . 2 2 . 1 . 5 1 3 1 2 . . 1 . Demolisher 1 | . . . . . . . . . . . . . . . . . . . . . 1 . . Specialist 5 | . . . . . . . 2 . . . . . . 2 . . . . . . 1 . . Hunter 18 | . . . . . . . 1 . 1 1 2 . 2 . 2 . 2 . . . 1 . 6 Programmer 42 | . . . . . . . . . . 1 . 1 1 5 . 2 2 11 1 . 6 3 9 Heavy 3 | . . . . . . . 1 . . . . . . . . . . 1 . . . . 1 Behemoth 3 | . . . . . . . . . . . . . 1 . . . . . 1 . . 1 . Executioner 2 | . . . . . . . . . . . . . . . . . . . . . . . 2 Best Kill Streak 10 | . 6 3 6 . . 7 8 2 7 3 3 1 2 6 4 4 4 9 5 . 4 4 10 Combat Bots Only 7 | . 5 3 5 . . 6 6 2 7 3 3 1 2 4 4 3 4 5 5 . 4 4 7 Max Kills in Single Turn 4 | . 2 2 3 . . 3 3 1 2 1 1 1 1 3 1 1 4 3 2 . 1 1 2 Gunslinging 1 | . . . . . . . . . . . . . . . . . . . 1 . . . 1 Exploded 4 | . 2 2 3 . . 2 3 . 2 . . . . 2 . . 4 2 . . . . . Melee . | . . . . . . . . . . . . . . . . . . . . . . . . Uniques/NPCs Destroyed . | . . . . . . . . . . . . . . . . . . . . . . . . Combat | -11 -10 -10 -9 -9 -9 -8 -8 -7 -7 -7 -7 -6 -6 -5 -5 -5 -5 -4 -4 -3 -2 -2 -2 -------- Run | Scr Mat Min Mat Min Exi Min Mat Fac Gar Fac Gar Fac Gar Fac Gar Fac Gar Fac Gar Res Res Gar Res Damage Taken 32313 | . 354 95 1257 . . 474 1888 225 1103 1370 403 16 2221 954 1582 1723 1108 4475 2124 164 2487 2464 5826 Core 4416 | . 36 13 244 . . 15 486 . 143 293 86 . 344 166 92 183 107 395 318 21 253 116 1105 Absorbed by Shields 2747 | . . . . . . . . . . . . . . . . . 157 . . 133 692 781 984 Reduced by Siege Mode 710 | . . . . . . . . . . . . . . 6 72 . 5 . . . 19 220 388 Core Remaining (%) 54 | 100 . 80 . . . 35 11 . . . 25 . 59 . . . 45 . 38 98 . . . Volleys Fired 1194 | . 18 4 95 . . 30 63 14 50 43 11 5 70 36 48 31 51 171 58 20 66 146 164 Largest 4 | . 2 2 2 . . 2 2 2 2 2 2 2 4 4 4 4 4 4 4 3 4 4 3 Hottest 392 | . 70 53 115 . . 110 155 150 150 131 51 56 219 346 346 392 375 254 265 179 302 304 165 Shots Fired 2168 | . 33 7 168 . . 53 154 28 78 55 25 9 165 114 135 86 167 192 195 22 93 177 212 Gun 1454 | . 25 4 155 . . 44 138 27 54 31 25 9 117 39 68 6 36 132 155 6 34 142 207 Cannon 538 | . . . 1 . . . . . 19 24 . . 18 66 53 71 123 46 32 1 54 30 . Launcher 55 | . 8 3 12 . . 9 12 1 5 . . . . 1 . . 2 2 . . . . . Special 121 | . . . . . . . 4 . . . . . 30 8 14 9 6 12 8 15 5 5 5 Kinetic 543 | . 18 4 37 . . . 85 . 19 24 25 9 88 25 8 . . 32 62 2 14 40 51 Thermal 1419 | . 7 . 119 . . 44 57 27 54 31 . . 47 80 113 77 158 142 125 5 62 115 156 Explosive 42 | . 8 3 8 . . . 12 1 5 . . . . 1 . . 2 2 . . . . . Electromagnetic 47 | . . . 4 . . 9 . . . . . . . . . . 1 4 . . 12 17 . Robot Hit Streak 39 | . 6 5 11 . . 3 10 11 10 9 14 4 15 20 17 21 9 19 15 6 10 39 32 Robot Miss Streak 11 | . 2 2 5 . . 4 5 5 11 6 1 4 5 3 3 3 2 3 3 4 3 4 3 Penetration Max 2 | . . . . . . . . . . . . . 1 . . . . 1 1 . . 2 . Secondary Targets 6 | . . . . . . . 1 . 2 . . . . . . . . . 2 . . . 1 Max Gunslinging Chain 1 | . . . . . . . 1 . 1 . . . . . . . . . 1 . . . 1 Capacitor 448 | . . . . . . . . . . . . . . . . . 1 135 . 4 46 114 148 Autonomous 91 | . . . . . . . 45 . . . 4 . . . . . . . . . . . 42 Shots Hit Robots 1387 | . 24 3 91 . . 17 103 20 52 36 20 5 101 78 80 50 70 130 121 13 65 137 171 Core Hits 755 | . 26 6 47 . . 22 65 20 71 27 10 4 46 41 24 23 32 66 56 . 30 55 84 Critical Kills 10 | . . . . . . . . . . . . . . 4 . . . . 3 . 1 1 1 Critical Parts Destroyed 21 | . . . 1 . . . 2 . . . . . 1 . . . . 1 6 . . 5 5 Critical Strikes 76 | . . . 4 . . 1 6 . 2 4 . . 2 6 1 . 4 16 13 . 3 8 6 Burn 37 | . . . 3 . . 1 4 . . 1 . . 1 2 1 . 4 15 3 . 1 1 . Meltdown 4 | . . . . . . . . . . . . . . 3 . . . . . . 1 . . Destroy 27 | . . . 1 . . . 2 . . . . . 1 1 . . . 1 9 . . 6 6 Blast 6 | . . . . . . . . . 2 3 . . . . . . . . 1 . . . . Corrupt 2 | . . . . . . . . . . . . . . . . . . . . . 1 1 . Melee Attacks 4 | . . . . . . . . . . . . . . 1 . 2 . 1 . . . . . Impact . | . . . . . . . . . . . . . . . . . . . . . . . . Slashing 1 | . . . . . . . . . . . . . . . . 1 . . . . . . . Piercing 3 | . . . . . . . . . . . . . . 1 . 1 . 1 . . . . . Sneak Attacks . | . . . . . . . . . . . . . . . . . . . . . . . . Combat Hostiles . | . . . . . . . . . . . . . . . . . . . . . . . . Follow-up Attacks . | . . . . . . . . . . . . . . . . . . . . . . . . Damage Inflicted 41799 | . 860 301 2203 . . 896 3450 386 2027 1112 354 131 1719 2802 1792 1573 2616 4820 2819 157 2562 3774 5445 Guns 23499 | . 167 17 1412 . . 400 1932 365 722 443 354 131 1448 675 748 97 470 3089 2090 117 555 2822 5445 Cannons 11920 | . . . . . . . . . 504 669 . . 271 1550 1044 1476 1790 1091 729 40 1804 952 . Explosions 6284 | . 693 284 791 . . 496 1422 21 801 . . . . 577 . . 356 640 . . 203 . . Melee . | . . . . . . . . . . . . . . . . . . . . . . . . Ramming . | . . . . . . . . . . . . . . . . . . . . . . . . Kinetic 9261 | . 106 17 158 . . . 1264 . 504 669 354 131 1233 435 96 . . 685 1234 50 200 758 1367 Thermal 26191 | . 61 136 1254 . . 434 764 365 722 443 . . 486 2056 1696 1573 2260 3412 1585 107 1970 2789 4078 Explosive 5146 | . 693 148 688 . . . 1302 21 801 . . . . 294 . . 356 640 . . 203 . . Electromagnetic 1184 | . . . 103 . . 462 120 . . . . . . . . . . 83 . . 189 227 . Impact 17 | . . . . . . . . . . . . . . 17 . . . . . . . . . Slashing . | . . . . . . . . . . . . . . . . . . . . . . . . Piercing . | . . . . . . . . . . . . . . . . . . . . . . . . Highest Corruption 20 | . . . . . . . . . . . . 1 1 . . 1 5 14 14 1 9 11 20 Average Corruption 6 | . . . . . . . . . . . . 1 1 . . 1 4 6 14 1 6 10 8 Corruption Purged 11 | . . . . . . . . . . . . . . . . . . . . . . . 11 Effects 348 | . . . . . . . . . . . . 2 14 . . 1 56 33 104 2 16 101 19 Message Errors 104 | . . . . . . . . . . . . 1 7 . . 1 20 9 26 1 7 26 6 Matter Fused 68 | . . . . . . . . . . . . . . . . . 11 10 22 . 2 21 2 Heat Flow Errors 39 | . . . . . . . . . . . . . . . . . 4 5 13 . . 14 3 Energy Discharges 42 | . . . . . . . . . . . . 1 3 . . . 7 4 13 . 1 12 1 Parts Rejected 2 | . . . . . . . . . . . . . . . . . . . 1 . . . 1 Data Loss (minor) 41 | . . . . . . . . . . . . . 4 . . . 6 1 11 1 3 14 1 Data Loss (major) 14 | . . . . . . . . . . . . . . . . . 4 1 5 . 2 1 1 Misfires 12 | . . . . . . . . . . . . . . . . . 3 . 3 . . 5 1 Alerts 6 | . . . . . . . . . . . . . . . . . . . 1 . . 5 . Weapon Failures 20 | . . . . . . . . . . . . . . . . . 1 3 9 . 1 3 3 Overload Shots 5 | . . . . . . . . . . . . . . . . . . 5 . . . . . Effects 1 | . . . . . . . . . . . . . . . . . . 1 . . . . . Heat Surge 1 | . . . . . . . . . . . . . . . . . . 1 . . . . . Overflow Damage 846 | . 8 34 54 . . 34 83 . 70 73 . . 8 129 . 36 72 74 64 . 107 . . Projectiles 484 | . . . . . . . 5 . 52 73 . . 8 31 . 36 65 43 64 . 107 . . Explosions 362 | . 8 34 54 . . 34 78 . 18 . . . . 98 . . 7 31 . . . . . Melee . | . . . . . . . . . . . . . . . . . . . . . . . . Knockbacks 22 | . . . . . . . . . 3 8 . . 2 6 . . . 2 1 . . . . Impact . | . . . . . . . . . . . . . . . . . . . . . . . . Kinetic 21 | . . . . . . . . . 2 8 . . 2 6 . . . 2 1 . . . . Secondary 1 | . . . . . . . . . 1 . . . . . . . . . . . . . . Self-Inflicted Damage 672 | . 23 57 141 . . 118 119 148 . . . . . 66 . . . . . . . . . Shots 20 | . 1 1 5 . . 6 4 2 . . . . . 1 . . . . . . . . . Rammed . | . . . . . . . . . . . . . . . . . . . . . . . . Targets Rammed . | . . . . . . . . . . . . . . . . . . . . . . . . Kicked . | . . . . . . . . . . . . . . . . . . . . . . . . Crushed . | . . . . . . . . . . . . . . . . . . . . . . . . Highest Temperature 586 | . 103 12 27 . . 254 141 141 120 230 9 7 471 347 552 554 373 586 296 86 466 415 188 Average Temperature 107 | . 40 4 7 . . 96 33 48 45 90 6 7 141 140 124 167 118 180 84 27 169 102 65 Received Heat Transfer 6172 | . 207 9 378 . . 144 594 45 567 288 72 . 441 174 279 360 204 892 622 8 241 477 170 Effects 43 | . . . . . . 3 . . . . . . 8 3 2 3 3 12 . . 7 2 . Shutdowns 17 | . . . . . . . . . . . . . 3 2 2 1 . 4 . . 4 1 . Energy Bleed 2 | . . . . . . . . . . . . . . . . . . 1 . . . 1 . Interference 13 | . . . . . . 3 . . . . . . . . . 2 3 2 . . 3 . . Matter Decay 1 | . . . . . . . . . . . . . . . . . . 1 . . . . . Short Circuit 3 | . . . . . . . . . . . . . . 1 . . . 2 . . . . . Damage (minor) 2 | . . . . . . . . . . . . . 1 . . . . 1 . . . . . Damage (major) 5 | . . . . . . . . . . . . . 4 . . . . 1 . . . . . Siege Activations 23 | . . . . . . . . . . . . . . 2 2 1 1 . 1 . 1 9 6 Total Turns 337 | . . . . . . . . . . . . . . 84 33 3 6 . 6 . 7 127 71 Longest Duration 73 | . . . . . . . . . . . . . . 73 21 3 6 . 6 . 7 34 32 Robots Corrupted 2 | . . . . . . 1 . . . . . . . . . . . . . . . 1 . Combat Hostiles 2 | . . . . . . 1 . . . . . . . . . . . . . . . 1 . Parts Fried 4 | . . . 1 . . 2 . . . . . . . . . . . 1 . . . . . Impact Corruptions . | . . . . . . . . . . . . . . . . . . . . . . . . Robots Melted 14 | . . . 1 . . . . . . 1 . . . 4 2 . 1 2 . . 2 1 . Combat Hostiles 14 | . . . 1 . . . . . . 1 . . . 4 2 . 1 2 . . 2 1 . Parts Melted 149 | . . . 10 . . 1 4 . . 1 . . 1 15 15 8 10 38 12 . 15 10 9 Heat Transferred 38467 | . 185 150 2812 . . 914 1865 332 610 625 . . 999 2838 2448 2270 2922 6026 3080 187 1883 3678 4643 Parts Sabotaged 1 | . . . . . . . . . . . . . . . . . . 1 . . . . . Parts Stolen . | . . . . . . . . . . . . . . . . . . . . . . . . Parts Stripped . | . . . . . . . . . . . . . . . . . . . . . . . . Power Chain Reactions 1 | . . . . . . 1 . . . . . . . . . . . . . . . . . Missiles Intercepted . | . . . . . . . . . . . . . . . . . . . . . . . . Alert | -11 -10 -10 -9 -9 -9 -8 -8 -7 -7 -7 -7 -6 -6 -5 -5 -5 -5 -4 -4 -3 -2 -2 -2 ------- Run | Scr Mat Min Mat Min Exi Min Mat Fac Gar Fac Gar Fac Gar Fac Gar Fac Gar Fac Gar Res Res Gar Res Peak Influence 1469 | . 297 112 344 34 . 125 583 193 831 437 100 98 623 531 489 640 1187 1078 1469 1029 660 739 562 Initial 825 | . . 37 42 34 . . 48 113 86 436 14 52 . 326 124 256 346 623 754 825 456 360 415 Average 472 | . 123 53 143 34 . 45 156 101 506 272 53 29 315 352 301 500 861 616 1211 937 475 625 374 Maximum Alert Level 4 | . 1 . 1 . . . 2 . 3 2 . . 2 2 2 2 4 3 4 3 2 3 2 Low Security (%) 27 | 100 58 100 68 100 . 100 69 100 11 16 100 100 35 15 32 . . . . . . . 2 Level 1 19 | . 41 . 31 . . . 17 . 18 67 . . 39 59 41 13 3 . . . 3 12 41 Level 2 30 | . . . . . . . 12 . 48 15 . . 25 25 26 86 23 78 . . 96 55 55 Level 3 14 | . . . . . . . . . 20 . . . . . . . 48 21 36 100 . 31 . Level 4 7 | . . . . . . . . . . . . . . . . . 24 . 63 . . . . Level 5 . | . . . . . . . . . . . . . . . . . . . . . . . . High Security . | . . . . . . . . . . . . . . . . . . . . . . . . Max Security . | . . . . . . . . . . . . . . . . . . . . . . . . Squads Dispatched 72 | . 3 . 2 . . 1 7 5 . 7 . 1 . 8 . 6 . 13 . 5 10 . 4 Investigation 9 | . 1 . 2 . . . 1 1 . 1 . . . 1 . . . . . 1 1 . . Extermination 16 | . . . . . . . . . . 1 . 1 . 2 . 1 . 5 . 1 3 . 2 Reinforcement 21 | . 2 . . . . 1 6 . . 2 . . . 5 . 1 . 3 . . . . 1 Assault 9 | . . . . . . . . . . . . . . . . 1 . 2 . 3 2 . 1 Garrison 17 | . . . . . . . . 4 . 3 . . . . . 3 . 3 . . 4 . . Intercept . | . . . . . . . . . . . . . . . . . . . . . . . . Construction Impeded 6 | . . . . . . 1 3 . . 1 . . . . . . . 1 . . . . . Haulers Reinforced . | . . . . . . . . . . . . . . . . . . . . . . . . Active Scanning Responses . | . . . . . . . . . . . . . . . . . . . . . . . . Cargo Convoy Interrupts 2 | . . . . . . . . . . . . . . 1 . . . . . . . . 1 Alert ID Control Effect 25 | . . . . . . . . . . . . . . . . . . . . 14 8 1 2 Stealth | -11 -10 -10 -9 -9 -9 -8 -8 -7 -7 -7 -7 -6 -6 -5 -5 -5 -5 -4 -4 -3 -2 -2 -2 --------- Run | Scr Mat Min Mat Min Exi Min Mat Fac Gar Fac Gar Fac Gar Fac Gar Fac Gar Fac Gar Res Res Gar Res Distress Signals 24 | . 1 . 6 . . 1 2 . . 1 . . . 2 . 4 . 5 . . . . 2 Communications Jammed . | . . . . . . . . . . . . . . . . . . . . . . . . Distress Signals . | . . . . . . . . . . . . . . . . . . . . . . . . Times Spotted 477 | . 19 5 35 . . 10 41 2 18 11 5 2 34 22 15 29 19 54 26 18 35 21 56 Peak Tracking Total 12 | . 8 3 7 . . 5 9 1 7 3 3 1 6 4 4 5 5 10 5 5 8 4 12 Tactical Retreats 16 | . . . 2 . . . . . . . . . 1 . 1 3 . 2 1 . 2 1 3 Traps | -11 -10 -10 -9 -9 -9 -8 -8 -7 -7 -7 -7 -6 -6 -5 -5 -5 -5 -4 -4 -3 -2 -2 -2 ------- Run | Scr Mat Min Mat Min Exi Min Mat Fac Gar Fac Gar Fac Gar Fac Gar Fac Gar Fac Gar Res Res Gar Res Traps Triggered 50 | . . . 1 . . . 6 . 5 . . 2 4 1 2 1 12 . 9 . . 7 . Indirectly 2 | . . . . . . . 2 . . . . . . . . . . . . . . . . Trap Hack Attempts . | . . . . . . . . . . . . . . . . . . . . . . . . Triggered . | . . . . . . . . . . . . . . . . . . . . . . . . Disarmed 6 | . . . 6 . . . . . . . . . . . . . . . . . . . . Reprogrammed . | . . . . . . . . . . . . . . . . . . . . . . . . Reused . | . . . . . . . . . . . . . . . . . . . . . . . . Traps Extracted . | . . . . . . . . . . . . . . . . . . . . . . . . Installed . | . . . . . . . . . . . . . . . . . . . . . . . . Triggered 1 | . . . . . . . . . . . . . . 1 . . . . . . . . . Machines | -11 -10 -10 -9 -9 -9 -8 -8 -7 -7 -7 -7 -6 -6 -5 -5 -5 -5 -4 -4 -3 -2 -2 -2 ---------- Run | Scr Mat Min Mat Min Exi Min Mat Fac Gar Fac Gar Fac Gar Fac Gar Fac Gar Fac Gar Res Res Gar Res Machines Disabled 73 | . 1 4 5 . . 2 6 3 6 4 . . 6 6 3 6 7 3 5 1 2 1 2 Max in Single Turn 3 | . 1 3 2 . . 2 1 2 2 3 . . 2 3 1 1 2 1 2 . 1 1 . Garrison Access 1 | . . . . . . . . . . . . . . . . 1 . . . . . . . Garrison Relay 17 | . . . . . . . . . 3 . . . 4 . 3 . 3 . 3 . . 1 . Phase Generator 4 | . . . . . . . . . 1 . . . 1 . . . 1 . 1 . . . . Machines Sabotaged . | . . . . . . . . . . . . . . . . . . . . . . . . Garrisons Compromised 1 | . . . . . . . . . . . . . . 1 . . . . . . . . . Overloaded Fab Kills . | . . . . . . . . . . . . . . . . . . . . . . . . Hacking | -11 -10 -10 -9 -9 -9 -8 -8 -7 -7 -7 -7 -6 -6 -5 -5 -5 -5 -4 -4 -3 -2 -2 -2 --------- Run | Scr Mat Min Mat Min Exi Min Mat Fac Gar Fac Gar Fac Gar Fac Gar Fac Gar Fac Gar Res Res Gar Res Machines Accessed 48 | . 1 . 9 . 2 . 4 5 . 5 . 4 . 2 . 4 . 6 . 1 4 . 1 Terminals 32 | . 1 . 8 . . . 4 4 . 3 . 3 . 1 . 2 . 2 . 1 2 . 1 Fabricators 3 | . . . . . . . . . . 1 . . . . . . . 1 . . 1 . . Repair Stations 1 | . . . . . . . . . . . . . . . . . . 1 . . . . . Recycling Units . | . . . . . . . . . . . . . . . . . . . . . . . . Scanalyzers 2 | . . . 1 . . . . . . . . . . . . . . 1 . . . . . Garrison Access 8 | . . . . . . . . 1 . 1 . 1 . 1 . 2 . 1 . . 1 . . Total Hacks 128 | . 3 . 38 . 5 . 14 10 . 14 . 6 . 4 . 5 . 17 . 2 8 . 2 Successful 82 | . 1 . 27 . 5 . 10 4 . 11 . 3 . 2 . 3 . 11 . . 4 . 1 Failed 46 | . 2 . 11 . . . 4 6 . 3 . 3 . 2 . 2 . 6 . 2 4 . 1 Catastrophic 12 | . 1 . 2 . . . 2 1 . . . 1 . 2 . . . 1 . 1 1 . . Database Lockouts . | . . . . . . . . . . . . . . . . . . . . . . . . Manual 48 | . 2 . 15 . 1 . 12 4 . 6 . 1 . . . . . 2 . . 4 . 1 Terminals 88 | . 3 . 28 . . . 14 9 . 11 . 5 . 3 . 3 . 3 . 2 5 . 2 Fabricators 5 | . . . . . . . . . . 2 . . . . . . . 1 . . 2 . . Repair Stations 2 | . . . . . . . . . . . . . . . . . . 2 . . . . . Recycling Units . | . . . . . . . . . . . . . . . . . . . . . . . . Scanalyzers 20 | . . . 10 . . . . . . . . . . . . . . 10 . . . . . Garrison Access 8 | . . . . . . . . 1 . 1 . 1 . 1 . 2 . 1 . . 1 . . Terminal Hacks 37 | . 1 . 11 . 5 . 7 2 . 6 . 2 . 1 . 1 . . . . . . 1 Record 7 | . . . 2 . 4 . . . . 1 . . . . . . . . . . . . . Part Schematic 2 | . . . . . . . . . . 1 . . . 1 . . . . . . . . . Robot Schematic 2 | . . . . . . . . 1 . . . 1 . . . . . . . . . . . Prototype ID Bank 6 | . 1 . 3 . . . 1 . . 1 . . . . . . . . . . . . . Open DSF 3 | . . . . . . . . 1 . . . 1 . . . 1 . . . . . . . Branch Access Points 3 | . . . 1 . . . 1 . . 1 . . . . . . . . . . . . . Emergency Access Points 2 | . . . 1 . . . 1 . . . . . . . . . . . . . . . . Unreport Threat 8 | . . . 2 . . . 3 . . 2 . . . . . . . . . . . . 1 Disarm Traps 1 | . . . 1 . . . . . . . . . . . . . . . . . . . . Recall Investigation 1 | . . . 1 . . . . . . . . . . . . . . . . . . . . Recall Reinforcements 1 | . . . . . . . 1 . . . . . . . . . . . . . . . . EX-Prototype ID Bank 1 | . . . . . 1 . . . . . . . . . . . . . . . . . . Fabricator Hacks 5 | . . . . . . . . . . 2 . . . . . . . 1 . . 2 . . Load Schematic 2 | . . . . . . . . . . 1 . . . . . . . . . . 1 . . Build 3 | . . . . . . . . . . 1 . . . . . . . 1 . . 1 . . Repair Station Hacks . | . . . . . . . . . . . . . . . . . . . . . . . . Recycling Unit Hacks . | . . . . . . . . . . . . . . . . . . . . . . . . Scanalyzer 19 | . . . 10 . . . . . . . . . . . . . . 9 . . . . . Insert Component 9 | . . . 5 . . . . . . . . . . . . . . 4 . . . . . Analyze 10 | . . . 5 . . . . . . . . . . . . . . 5 . . . . . Garrison Access Hacks 8 | . . . . . . . . 1 . 1 . 1 . 1 . 2 . 1 . . 1 . . Unlock Access 7 | . . . . . . . . 1 . 1 . 1 . 1 . 1 . 1 . . 1 . . Seal Access 1 | . . . . . . . . . . . . . . . . 1 . . . . . . . Unauthorized Hacks 13 | . . . 6 . . . 3 1 . 2 . . . . . . . . . . 1 . . Terminals 13 | . . . 6 . . . 3 1 . 2 . . . . . . . . . . 1 . . Assimilate 1 | . . . . . . . . . . . . . . . . . . . . . 1 . . Botnet 11 | . . . 6 . . . 2 1 . 2 . . . . . . . . . . . . . Operators 1 | . . . . . . . 1 . . . . . . . . . . . . . . . . Fabricators . | . . . . . . . . . . . . . . . . . . . . . . . . Repair Stations . | . . . . . . . . . . . . . . . . . . . . . . . . Recycling Units . | . . . . . . . . . . . . . . . . . . . . . . . . Scanalyzers . | . . . . . . . . . . . . . . . . . . . . . . . . Garrison Access . | . . . . . . . . . . . . . . . . . . . . . . . . Data Cores Recovered . | . . . . . . . . . . . . . . . . . . . . . . . . Used . | . . . . . . . . . . . . . . . . . . . . . . . . Hacking Detections 38 | . 1 . 8 . . . 4 4 . 5 . 4 . 1 . 1 . 4 . 1 4 . 1 Full Trace Events 8 | . 1 . 2 . . . . 1 . 1 . . . 1 . . . . . 1 1 . . Feedback Events 1 | . . . . . . . . . . . . . . . . . . . . 1 . . . Corruption 1 | . . . . . . . . . . . . . . . . . . . . 1 . . . Feedback Blocked . | . . . . . . . . . . . . . . . . . . . . . . . . Robot Schematics Acquired 2 | . . . . . . . . 1 . . . 1 . . . . . . . . . . . Robots Built 4 | . . . . . . . . . . 4 . . . . . . . . . . . . . Authchips . | . . . . . . . . . . . . . . . . . . . . . . . . Time 134 | . . . . . . . . . . 134 . . . . . . . . . . . . . Total Robot Build Rating 16 | . . . . . . . . . . 16 . . . . . . . . . . . . . Part Schematics Acquired 10 | . . . 5 . . . . . . 1 . . . 1 . . . 3 . . . . . Parts Built 3 | . . . . . . . . . . . . . . . . . . 1 . . 2 . . Authchips . | . . . . . . . . . . . . . . . . . . . . . . . . Time 110 | . . . . . . . . . . . . . . . . . . 46 . . 64 . . Total Part Build Rating 25 | . . . . . . . . . . . . . . . . . . 9 . . 16 . . Parts Repaired . | . . . . . . . . . . . . . . . . . . . . . . . . Time . | . . . . . . . . . . . . . . . . . . . . . . . . Parts Recycled . | . . . . . . . . . . . . . . . . . . . . . . . . Recycled Matter . | . . . . . . . . . . . . . . . . . . . . . . . . Retrieved Matter . | . . . . . . . . . . . . . . . . . . . . . . . . Retrieved Components . | . . . . . . . . . . . . . . . . . . . . . . . . Parts Scanalyzed 8 | . . . 5 . . . . . . . . . . . . . . 3 . . . . . Part Schematics Acquired 8 | . . . 5 . . . . . . . . . . . . . . 3 . . . . . Parts Damaged 1 | . . . . . . . . . . . . . . . . . . 1 . . . . . Bothacking | -11 -10 -10 -9 -9 -9 -8 -8 -7 -7 -7 -7 -6 -6 -5 -5 -5 -5 -4 -4 -3 -2 -2 -2 ------------ Run | Scr Mat Min Mat Min Exi Min Mat Fac Gar Fac Gar Fac Gar Fac Gar Fac Gar Fac Gar Res Res Gar Res Used RIF Installer 7 | . . . . . . . . . 1 . 1 . 1 . 1 . 1 . 1 . . 1 . Hotswap 1 | . . . . . . . . . . . . . . . . . 1 . . . . . . Command Fork 2 | . . . . . . . . . . . 1 . . . 1 . . . . . . . . Robot Detection 1 | . . . . . . . . . . . . . 1 . . . . . . . . . . Alert ID Control 1 | . . . . . . . . . . . . . . . . . . . 1 . . . . Autooverride 1 | . . . . . . . . . . . . . . . . . . . . . . 1 . Robots Hacked 59 | . . . . . . . . . . . . . 14 3 8 6 4 5 5 6 3 2 3 Non-combat 8 | . . . . . . . . . . . . . . 1 . 3 . 2 . 2 . . . Combat 51 | . . . . . . . . . . . . . 14 2 8 3 4 3 5 4 3 2 3 Autooverrided 1 | . . . . . . . . . . . . . . . . . . . . . . . 1 Robot Hacks Applied 63 | . . . . . . . . . . . . . 14 4 9 6 4 6 5 7 3 2 3 parse_system 5 | . . . . . . . . . . . . . . . 1 . . . 1 3 . . . purge_threat 2 | . . . . . . . . . . . . . . 2 . . . . . . . . . map_route 6 | . . . . . . . . . . . . . . . . 3 . 2 . 1 . . . relay_feed 1 | . . . . . . . . . . . . . . . . . . 1 . . . . . scatter_targeting 1 | . . . . . . . . . . . . . . . . . 1 . . . . . . spike_heat 1 | . . . . . . . . . . . . . . . . . . . . . 1 . . overload_power 1 | . . . . . . . . . . . . . 1 . . . . . . . . . . amplify_resonance 7 | . . . . . . . . . . . . . 6 . . . . . . . . . 1 disable_weapons 1 | . . . . . . . . . . . . . . . 1 . . . . . . . . reboot_system 2 | . . . . . . . . . . . . . 1 . . . . . . . 1 . . overwrite_iff 3 | . . . . . . . . . . . . . 1 . . . 1 . . . . . 1 streamctrl_high 2 | . . . . . . . . . . . . . . . . 1 . . 1 . . . . formatsys_high 31 | . . . . . . . . . . . . . 5 2 7 2 2 3 3 3 1 2 1 Relay Couplers Released 76 | . . . . . . . . . 12 4 . . 16 . 12 1 13 . 13 . . 5 . Machine Destruction 72 | . . . . . . . . . 12 . . . 16 . 12 1 13 . 13 . . 5 . Programmers 4 | . . . . . . . . . . 4 . . . . . . . . . . . . . Attached 33 | . . . . . . . . . . . . . 10 3 4 4 2 4 3 . . 1 2 Fabnet Peak Effective % . | . . . . . . . . . . . . . . . . . . . . . . . . Robots Rewired . | . . . . . . . . . . . . . . . . . . . . . . . . Allies Hacked 3 | . . . . . . . . . . . . . . . . . . 1 . . 1 . 1 Hacks Repelled . | . . . . . . . . . . . . . . . . . . . . . . . . Allies | -11 -10 -10 -9 -9 -9 -8 -8 -7 -7 -7 -7 -6 -6 -5 -5 -5 -5 -4 -4 -3 -2 -2 -2 -------- Run | Scr Mat Min Mat Min Exi Min Mat Fac Gar Fac Gar Fac Gar Fac Gar Fac Gar Fac Gar Res Res Gar Res Total Allies 51 | . . . . . . . . . . 4 . . 7 5 7 3 3 5 6 5 1 2 3 Largest Group 9 | . . . . . . . . . . 4 . . 5 9 6 6 2 2 4 6 7 1 2 Highest-Rated Group 382 | . . . . . . . . . . 48 . . 162 304 232 232 98 129 208 322 382 64 235 Highest-Rated Ally 171 | . . . . . . . . . . 12 . . 41 49 49 129 85 129 65 65 65 64 171 Total Orders 43 | . . . . . . . . . . . . . 4 4 15 2 4 1 2 2 4 3 2 STAY 25 | . . . . . . . . . . . . . 2 3 9 1 2 1 1 1 2 2 1 FOLLOW 18 | . . . . . . . . . . . . . 2 1 6 1 2 . 1 1 2 1 1 Ally Attacks 292 | . . . . . . . . . . 15 . . 29 39 17 43 4 38 14 38 40 3 12 Total Damage 11883 | . . . . . . . . . . 190 . . 579 1171 513 1708 244 2282 300 2311 2021 141 423 Kills 67 | . . . . . . . . . . 2 . . 2 9 2 8 2 16 . 15 8 1 2 Allies Corrupted . | . . . . . . . . . . . . . . . . . . . . . . . . Allies Melted 1 | . . . . . . . . . . . . . . . . 1 . . . . . . . Intel | -11 -10 -10 -9 -9 -9 -8 -8 -7 -7 -7 -7 -6 -6 -5 -5 -5 -5 -4 -4 -3 -2 -2 -2 ------- Run | Scr Mat Min Mat Min Exi Min Mat Fac Gar Fac Gar Fac Gar Fac Gar Fac Gar Fac Gar Res Res Gar Res Robot Analysis Total . | . . . . . . . . . . . . . . . . . . . . . . . . Derelict Logs Recovered 2 | . . 1 . 1 . . . . . . . . . . . . . . . . . . . Drone Launches . | . . . . . . . . . . . . . . . . . . . . . . . . Drone Recoveries . | . . . . . . . . . . . . . . . . . . . . . . . . Exploration | -11 -10 -10 -9 -9 -9 -8 -8 -7 -7 -7 -7 -6 -6 -5 -5 -5 -5 -4 -4 -3 -2 -2 -2 ------------- Run | Scr Mat Min Mat Min Exi Min Mat Fac Gar Fac Gar Fac Gar Fac Gar Fac Gar Fac Gar Res Res Gar Res Turns Passed 30508 | 1 429 466 1620 126 494 640 1520 746 1486 893 545 829 4184 1470 1548 1022 2466 1998 2538 558 1164 2914 851 Spaces Moved 11790 | 1 303 296 716 67 259 287 569 492 717 357 148 331 1545 565 717 364 903 673 800 187 356 966 171 Core 5 | . . . . . . . . . . . . . . . . . . . . . . . 5 Treads 5267 | . . . . . . . . . . . . . . 210 717 364 903 602 800 187 356 966 162 Legs 6443 | 1 303 296 716 67 259 287 569 492 717 357 148 331 1545 355 . . . . . . . . . Wheels 71 | . . . . . . . . . . . . . . . . . . 71 . . . . . Hover . | . . . . . . . . . . . . . . . . . . . . . . . . Flight 4 | . . . . . . . . . . . . . . . . . . . . . . . 4 Fastest Speed 30 | 120 120 120 120 190 190 190 120 120 120 123 186 190 190 160 160 160 166 115 180 270 260 245 30 Average Speed 214 | 120 120 150 180 190 190 190 186 133 173 217 314 237 242 198 160 215 241 233 265 270 263 255 250 Slowest Speed 720 | 120 120 190 260 190 190 190 260 190 190 720 720 260 260 260 160 246 246 490 270 270 270 410 270 Overloaded Moves . | . . . . . . . . . . . . . . . . . . . . . . . . Propulsion Burnouts . | . . . . . . . . . . . . . . . . . . . . . . . . Robots Hopped . | . . . . . . . . . . . . . . . . . . . . . . . . Cave-ins Triggered . | . . . . . . . . . . . . . . . . . . . . . . . . Exploration Rate (%) 41 | 2 56 66 68 14 61 52 56 18 96 14 42 10 92 14 62 11 93 19 63 5 9 66 4 Regions Visited 23 Branch Regions 4 Pre-discovered Areas 2 | . . 1 . . 1 . . . . . . . . . . . . . . . . . . Known Exits Taken 8 | . . . 1 . . . . 1 . 1 . 1 . 1 . 1 . 1 . . 1 . . Unknown Exits Taken 8 | 1 1 1 . 1 1 1 1 . . . . . . . . . . . . 1 . . . Scrap Searched 4 | . . 2 . 1 . 1 . . . . . . . . . . . . . . . . . Spaces Dug 50 | . . . 9 . . . . 29 . 4 . . . 1 . 1 2 4 . . . . . Terrain Destroyed 959 | . 45 42 110 . . 25 122 52 77 44 1 . 84 39 3 15 112 63 80 . 22 12 11 Melee 3 | . . . . . . . . . . . . . . 1 . 1 . 1 . . . . . Projectile 197 | . . . 1 . . . 22 . 7 14 1 . 9 9 3 14 34 41 8 . 11 12 11 AOE 759 | . 45 42 109 . . 25 100 52 70 30 . . 75 29 . . 78 21 72 . 11 . . Terrain Rammed . | . . . . . . . . . . . . . . . . . . . . . . . . Walls Destroyed . | . . . . . . . . . . . . . . . . . . . . . . . . Machines Disabled . | . . . . . . . . . . . . . . . . . . . . . . . . Actions | -11 -10 -10 -9 -9 -9 -8 -8 -7 -7 -7 -7 -6 -6 -5 -5 -5 -5 -4 -4 -3 -2 -2 -2 --------- Run | Scr Mat Min Mat Min Exi Min Mat Fac Gar Fac Gar Fac Gar Fac Gar Fac Gar Fac Gar Res Res Gar Res Total 15879 | 2 342 311 896 66 263 328 916 555 869 421 212 362 1901 841 1043 548 1097 1044 1098 239 556 1387 582 Wait 1668 | . . . 14 . . 1 222 25 50 . 33 1 124 159 230 85 56 93 138 5 83 163 186 Move 11772 | . 302 295 715 66 258 286 568 491 716 356 147 331 1544 565 716 364 902 673 799 186 356 965 171 Hop . | . . . . . . . . . . . . . . . . . . . . . . . . Pick Up 236 | . 8 1 16 . 1 2 7 7 7 4 2 12 46 17 14 8 12 18 17 8 5 17 7 Fast Attach 169 | . 1 1 11 . . 2 16 2 4 4 6 10 5 9 3 7 9 23 10 2 7 21 16 Attach 102 | . . . 3 . . 3 5 2 3 5 5 . 12 7 5 3 4 14 7 2 5 7 10 Detach 33 | . . . 1 . . 1 3 . . 1 5 1 1 1 3 1 3 5 2 2 . 3 . Swap 272 | . 5 6 17 . 1 2 12 4 7 4 2 1 34 25 13 28 20 23 22 6 14 21 5 Drop 342 | 2 8 4 24 . 3 1 20 10 7 4 1 1 45 21 10 19 21 23 29 8 20 38 23 Fire 1194 | . 18 4 95 . . 30 63 14 50 43 11 5 70 36 48 31 51 171 58 20 66 146 164 Melee 4 | . . . . . . . . . . . . . . 1 . 2 . 1 . . . . . Ram . | . . . . . . . . . . . . . . . . . . . . . . . . Kick . | . . . . . . . . . . . . . . . . . . . . . . . . Crush . | . . . . . . . . . . . . . . . . . . . . . . . . Escape Stasis 86 | . . . . . . . . . 25 . . . 20 . . . 19 . 16 . . 6 . Rewire 1 | . . . . . . . . . . . . . . . 1 . . . . . . . . Trap . | . . . . . . . . . . . . . . . . . . . . . . . . Miscellaneous . | . . . . . . . . . . . . . . . . . . . . . . . . Route ------- -11/Scrapyard -10/Materials (discovered 2 exits: *Mat / [*Min]) -10/Mines (discovered 2 exits: *Mat x2) -9/Materials (discovered 3 exits: *Mat x2 / *Min) -9/Mines -9/Exiles -8/Mines -8/Materials -7/Factory -7/Garrison (discovered 3 exits: *Fac x3) -7/Factory (discovered 5 exits: Sto x2 / *Low x2 / Gar) -7/Garrison -6/Factory -6/Garrison (discovered 3 exits: *Fac x3) -5/Factory -5/Garrison (discovered 2 exits: *Fac x2) -5/Factory (discovered 2 exits: [Upp] / Gar) -5/Garrison (discovered 3 exits: *Fac x3) -4/Factory -4/Garrison (discovered 2 exits: *Res x2) -3/Research -2/Research -2/Garrison (discovered 2 exits: *Res x2) -2/Research History --------- Turn | Location | Event 2 | -11/Scrapyard | Discovered new exit (range 0) 2 | -11/Scrapyard | Entered Materials 127 | -10/Materials | Discovered new exit (range 10) 307 | -10/Materials | Build established: Mutant 394 | -10/Materials | Discovered new exit (range 13) 431 | -10/Materials | Entered Mines 584 | -10/Mines | Received a Rocket Launcher from a helpful Derelict 667 | -10/Mines | Learned location of Storage (-7) 820 | -10/Mines | Discovered new exit (range 15) 857 | -10/Mines | Discovered new exit (range 8) 897 | -10/Mines | Entered Materials 897 | -9/Materials | Evolved 2 slots: Utility x2 984 | -9/Materials | Identified exit to Mines 1134 | -9/Materials | Lost 5 parts (1p1n3w) 1556 | -9/Materials | Discovered new exit (range 7) 1898 | -9/Materials | Core integrity fell below 50% 2043 | -9/Materials | Discovered new exit (range 5) 2517 | -9/Materials | Entered Mines 2605 | -9/Mines | Learned Materials security intel 2635 | -9/Mines | Deemed a non-threat by the Exiles lab entrance 2635 | -9/Mines | Discovered new exit (range 5) 2643 | -9/Mines | Entered Exiles 2695 | -9/Exiles | Met 8R-AWN 2723 | -9/Exiles | Met EX-HEX 2778 | -9/Exiles | Met EX-BIN 2805 | -9/Exiles | Aligned with FarCom system 2807 | -9/Exiles | Given EX-Vault access code 2851 | -9/Exiles | Opened EX-Vault 2867 | -9/Exiles | Found AWS/Gauss 2906 | -9/Exiles | Warned to stay clear of 0b10 Research branches 2965 | -9/Exiles | Met EX-DEC 2972 | -9/Exiles | Learned location of Zion (-7) 3120 | -9/Exiles | Discovered new exit (range 10) 3137 | -9/Exiles | Left Exiles lab with AWS/Gauss 3137 | -9/Exiles | Entered Mines 3660 | -8/Mines | Lost 3 parts (1u2w) 3705 | -8/Mines | Discovered new exit (range 4) 3777 | -8/Mines | Entered Materials 3777 | -8/Materials | Evolved 2 slots: Utility x2 3978 | -8/Materials | Build established: Scavenger-Mutant 4479 | -8/Materials | Build established: Scavenger-Skirmisher 4656 | -8/Materials | Core integrity fell below 50% 4887 | -8/Materials | Core integrity fell below 20% 4917 | -8/Materials | Lost 4 parts (1n2u1w) 4922 | -8/Materials | Discovered new exit (range 19) 5297 | -8/Materials | Entered Factory 5297 | -7/Factory | Evolved 2 slots: Power x1, Propulsion x1 5569 | -7/Factory | Identified exit to Garrison 5603 | -7/Factory | Garrison activated, responded to threat 5784 | -7/Factory | Garrison activated, responded to threat 6043 | -7/Factory | Entered Garrison 6080 | -7/Garrison | Triggered checkpoint 6196 | -7/Garrison | Triggered checkpoint 6207 | -7/Garrison | Triggered checkpoint 6238 | -7/Garrison | Triggered checkpoint 6273 | -7/Garrison | Destroyed 7 combat bots 6273 | -7/Garrison | Lost 3 parts (1n1u1w) 6367 | -7/Garrison | Discovered new exit (range 19) 6608 | -7/Garrison | Discovered new exit (range 9) 6677 | -7/Garrison | Installed Relay Interface Framework 6697 | -7/Garrison | Phase Generator disabled 6746 | -7/Garrison | Triggered checkpoint 6947 | -7/Garrison | Garrison Relay disabled 7012 | -7/Garrison | Discovered new exit (range 12) 7217 | -7/Garrison | Garrison Relay disabled 7412 | -7/Garrison | Triggered checkpoint 7435 | -7/Garrison | Garrison Relay disabled 7529 | -7/Garrison | Entered Factory 7647 | -7/Factory | Identified exit to Storage 7647 | -7/Factory | Identified exit to Lower Caves 7926 | -7/Factory | Fabricated S-27 Virus? 8401 | -7/Factory | Core integrity fell below 50% 8413 | -7/Factory | Identified exit to Garrison 8422 | -7/Factory | Entered Garrison 8452 | -7/Garrison | Lost 7 parts (2p4n1w) 8465 | -7/Garrison | Build established: Scavenger-Mutant 8738 | -7/Garrison | Triggered checkpoint 8870 | -7/Garrison | Triggered checkpoint 8927 | -7/Garrison | Discovered new exit (range 9) 8960 | -7/Garrison | Expanded RIF knowledge: Command Fork 8967 | -7/Garrison | Entered Factory 8967 | -6/Factory | Evolved 2 slots: Weapon x2 9796 | -6/Factory | Identified exit to Garrison 9796 | -6/Factory | Entered Garrison 9853 | -6/Garrison | Triggered checkpoint 9933 | -6/Garrison | Garrison Relay disabled 10245 | -6/Garrison | Triggered checkpoint 10522 | -6/Garrison | Spotted B-75 Beast 10675 | -6/Garrison | Destroyed B-75 Beast 10700 | -6/Garrison | Lost 3 parts (1n2w) 10954 | -6/Garrison | Build established: Bothacker-Skirmisher 11103 | -6/Garrison | Discovered new exit (range 13) 11238 | -6/Garrison | Triggered checkpoint 11353 | -6/Garrison | Garrison Relay disabled 11618 | -6/Garrison | Triggered checkpoint 11675 | -6/Garrison | Triggered checkpoint 11774 | -6/Garrison | Triggered checkpoint 12010 | -6/Garrison | Build established: Scavenger-Skirmisher 12429 | -6/Garrison | Lost 4 parts (1p1n2w) 12648 | -6/Garrison | Build established: Scavenger-Mutant 12976 | -6/Garrison | Discovered new exit (range 13) 13045 | -6/Garrison | Phase Generator disabled 13158 | -6/Garrison | Triggered checkpoint 13201 | -6/Garrison | Garrison Relay disabled 13431 | -6/Garrison | Garrison Relay disabled 13499 | -6/Garrison | Discovered new exit (range 8) 13520 | -6/Garrison | Build established: Bothacker-Skirmisher 13530 | -6/Garrison | Expanded RIF knowledge: Robot Detection 13980 | -6/Garrison | Entered Factory 13980 | -5/Factory | Accompanied by 5 allies 13980 | -5/Factory | Evolved 2 slots: Propulsion x1, Utility x1 14190 | -5/Factory | Allied Derelicts emerged from ambush trap array 14908 | -5/Factory | Cargo convoy interrupted 15450 | -5/Factory | Identified exit to Garrison 15450 | -5/Factory | Entered Garrison 15458 | -5/Garrison | Expanded RIF knowledge: Command Fork 15528 | -5/Garrison | Build established: Bothacker-Mutant 15734 | -5/Garrison | Triggered checkpoint 15824 | -5/Garrison | Lost 3 parts (2u1w) 15934 | -5/Garrison | Triggered checkpoint 15953 | -5/Garrison | Garrison Relay disabled 16228 | -5/Garrison | Discovered new exit (range 10) 16282 | -5/Garrison | Triggered checkpoint 16289 | -5/Garrison | Garrison Relay disabled 16506 | -5/Garrison | Discovered new exit (range 11) 16576 | -5/Garrison | Triggered checkpoint 16739 | -5/Garrison | Garrison Relay disabled 16918 | -5/Garrison | Build established: Bothacker-Skirmisher 16998 | -5/Garrison | Entered Factory 16998 | -5/Factory | Accompanied by 6 allies 17131 | -5/Factory | Garrison activated, responded to threat 17261 | -5/Factory | Discovered new exit (range 76) 17898 | -5/Factory | First assault squad dispatched 17960 | -5/Factory | Garrison activated, responded to threat 18020 | -5/Factory | Identified exit to Garrison 18020 | -5/Factory | Entered Garrison 18052 | -5/Garrison | Triggered checkpoint 18279 | -5/Garrison | Garrison Relay disabled 18437 | -5/Garrison | Phase Generator disabled 18554 | -5/Garrison | Build established: Scavenger-Gunner 18574 | -5/Garrison | Spotted B-75 Beast 18636 | -5/Garrison | Triggered checkpoint 18661 | -5/Garrison | Assimilated Beast 6a with formatsys_high 18933 | -5/Garrison | Discovered new exit (range 13) 19128 | -5/Garrison | Triggered checkpoint 19149 | -5/Garrison | Triggered checkpoint 19252 | -5/Garrison | Triggered checkpoint 19277 | -5/Garrison | Core integrity fell below 50% 19510 | -5/Garrison | Triggered checkpoint 19568 | -5/Garrison | Garrison Relay disabled 19668 | -5/Garrison | Discovered new exit (range 15) 19803 | -5/Garrison | Expanded RIF knowledge: Hotswap 19908 | -5/Garrison | Found Quantum Capacitor 20269 | -5/Garrison | Build established: Scavenger-Mutant 20305 | -5/Garrison | Garrison Relay disabled 20409 | -5/Garrison | Discovered new exit (range 15) 20486 | -5/Garrison | Entered Factory 20486 | -4/Factory | Accompanied by 1 ally 20486 | -4/Factory | Evolved 2 slots: Utility x2 20643 | -4/Factory | Build established: Bothacker-Mutant 21387 | -4/Factory | Fabricated Adv. Cloaking Device (x1) 21932 | -4/Factory | Lost 6 parts (1p4n1w) 22024 | -4/Factory | First assault squad dispatched 22046 | -4/Factory | Garrison activated, responded to threat 22126 | -4/Factory | System corruption reached 10% 22127 | -4/Factory | Lost 11 parts (1p2n4u4w) 22263 | -4/Factory | Found Prototype Launcher 22484 | -4/Factory | Identified exit to Garrison 22484 | -4/Factory | Entered Garrison 22498 | -4/Garrison | Expanded RIF knowledge: Alert ID Control 22579 | -4/Garrison | Build established: Scavenger-Tank 22620 | -4/Garrison | Triggered checkpoint 22800 | -4/Garrison | Garrison Relay disabled 22882 | -4/Garrison | Identified Mni. Smartbomb Launcher 23231 | -4/Garrison | Spotted B-86 Titan 23305 | -4/Garrison | Core integrity fell below 50% 23310 | -4/Garrison | Destroyed B-86 Titan 23619 | -4/Garrison | Phase Generator disabled 23646 | -4/Garrison | Discovered new exit (range 11) 23649 | -4/Garrison | Build established: Scavenger-Skirmisher 23740 | -4/Garrison | Triggered checkpoint 23855 | -4/Garrison | Garrison Relay disabled 24380 | -4/Garrison | Triggered checkpoint 24489 | -4/Garrison | Discovered new exit (range 9) 24555 | -4/Garrison | Garrison Relay disabled 24597 | -4/Garrison | Build established: Botlord-Mutant 24606 | -4/Garrison | Triggered checkpoint 24910 | -4/Garrison | Found Quantum Capacitor 25022 | -4/Garrison | Entered Research 25022 | -3/Research | Accompanied by 4 allies 25022 | -3/Research | Evolved 2 slots: Utility x2 25092 | -3/Research | Discovered new exit (range 15) 25272 | -3/Research | First assault squad dispatched 25580 | -3/Research | Entered another Research area 25580 | -2/Research | Accompanied by 6 allies 25580 | -2/Research | Evolved 2 slots: Power x1, Utility x1 25908 | -2/Research | Fabricated Imp. Heavy Siege Treads (x2) 25927 | -2/Research | Spotted B-90 Cyclops 25940 | -2/Research | Allies destroyed B-90 Cyclops 26080 | -2/Research | First assault squad dispatched 26167 | -2/Research | Garrison activated, responded to threat 26657 | -2/Research | Garrison activated, responded to threat 26698 | -2/Research | Build established: Botlord-Gunner 26744 | -2/Research | Identified exit to Garrison 26744 | -2/Research | Entered Garrison 26938 | -2/Garrison | Triggered checkpoint 27110 | -2/Garrison | System corruption reached 10% 27584 | -2/Garrison | Spotted B-90 Cyclops 27621 | -2/Garrison | Destroyed B-90 Cyclops 27640 | -2/Garrison | Found Quantum Capacitor 27652 | -2/Garrison | Lost 6 parts (3p1n1u1w) 27926 | -2/Garrison | Triggered checkpoint 28216 | -2/Garrison | Build established: Scavenger-Mutant 28334 | -2/Garrison | Discovered new exit (range 10) 28416 | -2/Garrison | Triggered checkpoint 28457 | -2/Garrison | Garrison Relay disabled 28590 | -2/Garrison | Triggered checkpoint 28691 | -2/Garrison | Discovered new exit (range 12) 28720 | -2/Garrison | Triggered checkpoint 28889 | -2/Garrison | Build established: Botlord-Mutant 29207 | -2/Garrison | Expanded RIF knowledge: Autooverride 29572 | -2/Garrison | Triggered checkpoint 29658 | -2/Garrison | Entered Research 29658 | -2/Research | Accompanied by 1 ally 29812 | -2/Research | Build established: Botlord-Gunner 30230 | -2/Research | Lost 3 parts (1p1u1w) 30270 | -2/Research | Found Prototype Device 30270 | -2/Research | Identified Active Sensor Suite 30351 | -2/Research | Destroyed 7 combat bots 30419 | -2/Research | Spotted Striker 30419 | -2/Research | Spotted Executioner 30419 | -2/Research | Spotted Executioner 30420 | -2/Research | Cargo convoy interrupted 30443 | -2/Research | First assault squad dispatched 30462 | -2/Research | Core integrity fell below 50% 30465 | -2/Research | Destroyed Executioner 30466 | -2/Research | Destroyed Executioner 30501 | -2/Research | Destroyed 7 combat bots 30504 | -2/Research | Core integrity fell below 20% 30505 | -2/Research | Found Prototype Device 30505 | -2/Research | Identified Exp. Focal Shield 30507 | -2/Research | Found Prototype Device 30509 | -2/Research | Destroyed by L-61 Swordsman with Power Sword Last Messages --------------- 30498_ Identified Cld. Q-thruster. 30498_ P-80 Master resets K-01 Serf, system corruption cleaned. 30499_ K-01 Serf collects debris. 30502_ P-80 Master resets G-73 Enforcer, system corruption cleaned. 30503_ Adv. Heat Sink destroyed. 30503_ K-01 Serf collects debris. 30504_ R-10 Processor collects Wheel. 30505_ Acquired Prototype Device. 30505_ Identified Exp. Focal Shield. 30505_ Imp. Diametric Drive destroyed. 30506_ K-01 Serf collects debris. 30507_ Dropped Adv. Heat Sink. 30507_ Acquired Prototype Device. 30507_ K-01 Serf collects debris. 30508_ R-10 Processor collects Adv. Remote Datajack. 30508_ Dropped Imp. Remote Force Field. 30509_ K-01 Serf collects debris. 30509_ R-10 Processor collects Sml. Battery. 30509_ Acquired Prototype Energy Cannon. [Achievement: 40k Club] Map ----- +----------------------------------------------------+ | ?????????????????????????????????????????????????? | | ?????????????????????????????????????????????????? | | ?????????????????????????????????????????????????? | | ?????????????????????????????????????????????????? | | ?????????????????????????????????????????????????? | | ?????????????????????????????????????????????????? | | ?????????????????????????????????????????????????? | | ?????????????????????????????????????????????????? | | ??????????????????????????? ???????????????????? | | ????????????????????????? ???????????????????? | | ????????????????????????#R ???????????????????? | | ????????????????????????# #??????????????????? | | ???????????????????????? #?? ???????????????? | | ????????????????????????# %!#? ????????????????? | | ????????????????????????# % # ????????????????? | | ????????????????????????# % # ?????????????????? | | ????????????????????????; # ?????????????????? | | ????????????????????????; [ %####+??????????????? | | ????????????????????????#!**% ???????????????? | | ????????????????????????#%|==% ????????????????? | | ????????????########????#!*! ?????????????????? | | ????????????# #????#!!!*R#??????????????????? | | ????????????# #????#=i!!!##?????????????????? | | ????????????# #????#p=ggp%#?????????????????? | | ????????????# #????#%g%=%#??????????????????? | | ????????????# #???##@l /[##?????????????????? | | ?????????????? ???##=% !![!#?????????????????? | | ???????????????#+######;/!=u*!!#?????????????????? | | ???????????????# *%%!%%##?????????????????? | | ???????????????# !k%=*k#??????????????????? | | ???????????????# ![%%%k#??????????????????? | | ???????????????#""" %!!/=/#??????????????????? | | ???????????????#"R| % ]%[|]#??????????????????? | | ???????????????#"""% %"[*%!=#??????????????????? | | ???????????????# " [*[ = ########???????????? | | ?????????????###% %R% !% * ???????? | | ?????????????# # %%= !!= =%! ???????? | | ????????????## #%%[ %!= = ???????? | | ????????????# #[######## ???????? | | ????????????# #%# !#? # ????????? | | ????????????##%#%# #### ###|## ##########????????? | | ????????????## #+# #### = #?###########?????? | | ????????????# % # #?# #?????? | | ????????????# % %!! # #?# = #?????? | | ????????????# !! # """ #?# = #?????? | | ????????????# % # """ #?# = #?????? | | ????????????# # """ #?# #?????? | | ????????????# # """ ??# ! #?????? | | ????????????# # ????# #?????? | | ????????????# # ??????# ! ! #?????? | +----------------------------------------------------+ Best States ------------- Heat Dissipation 175 Coolant Potential 100 Energy Generation 77 Energy Capacity 800 Matter Stores 491 Matter Capacity 600 Sight Range 22 Robot Scan Range 20 Terrain Scan Density 85 Jamming Range 16 Cloak Strength 4 Power Amplification 30 Additional Mass Support 12 Armor Coverage 1200 Resistance: KI 20 Propulsion Shielding 66 Weapon Cycling 15 Phase Shifting 15 Evasion (%) 55 Targeting Accuracy 8 Target Analysis 8 Core Analysis 8 Armor Integrity Analysis 20 Recoil Reduction 4 Particle Charging 15 Relay Coupler Types 4 Relay Coupler Value 67 Item Schematics ----------------- Med. Storage Unit | -9/Materials | Scanalyzed Rocket Launcher | -9/Materials | Scanalyzed Deuterium Engine | -9/Materials | Scanalyzed Hvy. Particle Gun | -9/Materials | Scanalyzed Aluminum Leg | -9/Materials | Scanalyzed Nuclear Pulse Array | -7/Factory | Hacked Imp. Heavy Siege Treads | -5/Factory | Hacked Variable Charge Gun | -4/Factory | Scanalyzed Imp. Remote Datajack | -4/Factory | Scanalyzed Imp. Heavy Treads | -4/Factory | Scanalyzed Robot Schematics ------------------ S-27 Virus | -7/Factory | Hacked L-41 Fighter | -6/Factory | Hacked Fabricated ------------ S-27 Virus | x4 | -7/Factory Adv. Cloaking Device | x1 | -4/Factory | Preloaded Imp. Heavy Siege Treads | x2 | -2/Research Alien Tech Used ----------------- None Achievements -------------- 40k Club More Power To You Pwned Challenges ------------ None Game ------ Seed MiniBoreExoskeleton Manual? 0 Play Time 04:23:31 Cumulative 336.7 hours Start 2021.12.04 @ 01:59:39 End 2022.01.02 @ 21:22:31 Sessions 27 Manual Loads 0 Difficulty Rogue Special Mode None Game No. 469 Rogue 468 Adventurer 0 Explorer 1 Win Type - Total 2 Types 2/0/0/0/0/0/0/0/0 Lore% 68 Gallery% 82 Achievement% 61 Wizard Run 0 Options --------- ASCII 1 Keyboard 1 Movement Vi Keybinds 0 Fullscreen 2 Font 12/Smallcaps Map View 76x56 Tactical HUD 1 Map Filters NONE Filters LOW_CONTRAST(13,24,33) Steam 0 RUN: 54f602b1-b8f3-47e0-97f5-4620496d8fdf